bitfinex-derivatives/quotes_BNBF0:USTF0_20250303
["timestamp","ask_amount","ask_price","bid_price","bid_amount"]
[1741030699234,0.3452085,579.36,578.05,0.27958526]
[1741030699440,0.3452085,579.36,578.06,0.27958526]
[1741030699635,0.3452085,579.36,578.07,0.27958526]
[1741030699836,0.3452085,579.36,578.04,0.27958526]
[1741030700039,0.3452085,579.36,578.05,0.27949605]
[1741030700235,0.3452085,579.36,578.04,0.27949605]
[1741030700535,0.31761978,579.35,578.05,0.27949605]
[1741030700734,0.34522638,579.33,578.05,0.27949605]
[1741030700939,0.31761978,579.32,578.06,0.27949605]
[1741030701138,0.34524426,579.3,578.07,0.27949605]
[1741030701340,0.31761978,579.29,578.25,1.28866921]
[1741030701539,0.31761978,579.29,578.26,0.27949605]
[1741030701749,0.3176782,579.28,578.27,0.27960207]
[1741030702036,0.3452681,579.26,578.28,0.27960207]
[1741030702238,0.3452681,579.26,578.29,0.27960207]
[1741030702437,0.31767859,579.25,578.3,0.27960207]
[1741030702641,0.34528598,579.23,578.26,0.27960207]
[1741030702843,0.34528598,579.23,578.27,0.27957427]
[1741030703035,0.34528598,579.23,578.28,0.27957427]
[1741030703241,0.34528598,579.23,578.29,0.27954247]
[1741030703438,0.34528598,579.23,578.3,0.27954247]
[1741030703643,0.34528598,579.23,578.31,0.27954247]
[1741030703939,0.34528598,579.23,578.06,0.27954247]
[1741030704144,1.80463605,579.22,578.07,0.27954247]
[1741030704338,1.80463605,579.22,578.08,0.27954247]
[1741030704538,1.80463605,579.22,578.09,0.27954247]
[1741030705043,1.80463605,579.22,578.1,0.27954247]
[1741030705244,1.80463605,579.22,578.11,0.27954247]
[1741030705443,0.3452979,579.21,578.11,0.27954247]
[1741030705643,0.3452979,579.21,578.1,1.28866921]
[1741030707139,1.80498705,579.2,577.53,1.28866921]
[1741030707340,1.80498705,579.2,577.55,0.34629036]
[1741030707542,1.80498705,579.2,577.56,0.27965195]
[1741030707945,0.34531579,579.18,577.57,0.34627837]
[1741030708139,0.34531579,579.18,577.58,0.27965195]
[1741030708340,0.34531579,579.18,577.59,0.34626638]
[1741030708541,0.34531579,579.18,577.6,0.27965195]
[1741030708741,0.34531579,579.18,577.61,0.34625439]
[1741030708941,0.34531579,579.18,577.62,0.27965195]
[1741030709341,0.34531579,579.18,577.63,0.27957974]
[1741030709546,0.34531579,579.18,577.72,1.28866921]
[1741030709746,0.34531579,579.18,577.73,0.27957974]
[1741030710348,0.34531579,579.18,577.74,0.27957974]
[1741030710549,0.34531579,579.18,577.75,0.27957974]
[1741030710749,0.34531579,579.18,577.76,0.27957974]
[1741030710951,0.34531579,579.18,577.77,0.27957974]
[1741030711143,0.34531579,579.18,577.78,0.27957974]
[1741030711342,0.34531579,579.18,577.79,0.27957974]
[1741030711546,0.34531579,579.18,577.8,0.27957974]
[1741030711748,0.34531579,579.18,577.61,0.34625439]
[1741030711749,0.34531579,579.18,578.23,1.28866921]
[1741030711947,0.34531579,579.18,578.24,0.27957974]
[1741030712453,0.34531579,579.18,578.23,1.28866921]
[1741030713151,1.80471404,579.17,578.23,1.28866921]
[1741030713746,1.80471404,579.17,577.61,0.34625439]
[1741030714247,1.80471404,579.17,577.62,0.27962333]
[1741030715454,1.107,579.16,577.62,0.27962333]
[1741030715854,1.107,579.16,577.63,0.27962333]
[1741030716155,1.107,579.16,577.64,0.27962333]
[1741030716356,1.107,579.16,577.65,0.27962333]
[1741030716554,1.107,579.16,577.78,1.28866921]
[1741030716752,1.107,579.16,577.79,0.27962333]
[1741030716952,1.107,579.16,577.78,1.28866921]
[1741030717156,1.107,579.16,577.79,0.27949745]
[1741030717449,1.107,579.16,577.8,0.27949745]
[1741030717656,1.107,579.16,577.81,0.27949745]
[1741030717851,1.107,579.16,577.82,0.27949745]
[1741030718048,1.107,579.16,577.78,1.28866921]
[1741030718049,1.107,579.16,578.27,1.28866921]
[1741030718255,1.107,579.16,578.28,0.27949745]
[1741030718754,0.34533367,579.15,578.28,0.27949745]
[1741030719251,1.80464385,579.14,578.28,0.27949745]
[1741030720057,0.3453456,579.13,578.28,0.27949745]
[1741030721959,0.3453456,579.13,578.29,0.27949745]
[1741030722253,0.3453456,579.13,578.3,0.27949745]
[1741030722450,1.384,579.12,578.24,0.27949745]
[1741030722655,1.384,579.12,578.25,0.27949745]
[1741030722855,1.384,579.12,578.24,0.27949745]
[1741030723056,1.384,579.12,578.23,1.28866921]
[1741030723259,1.384,579.12,578.24,0.27941305]
[1741030723664,1.384,579.12,578.24,1.56808226]
[1741030723861,1.384,579.12,578.25,0.27941305]
[1741030726066,1.384,579.12,578.33,1.28866921]
[1741030726265,1.384,579.12,578.34,0.27944442]
[1741030728372,1.384,579.12,578.35,0.27944442]
[1741030728571,1.384,579.12,578.46,1.28866921]
[1741030728767,1.384,579.12,578.47,0.27944442]
[1741030728978,1.384,579.12,578.48,0.27944442]
[1741030729173,1.384,579.12,578.49,0.27944442]
[1741030729474,1.384,579.12,578.5,0.27923448]
[1741030729670,1.384,579.12,578.47,0.27923448]
[1741030729871,1.384,579.12,578.48,0.27923448]
[1741030730066,1.384,579.12,578.47,0.27923448]
[1741030730274,1.384,579.12,578.48,0.27923448]
[1741030730473,1.384,579.12,578.46,1.28866921]
[1741030730474,1.384,579.12,578.47,0.27923448]
[1741030730673,1.384,579.12,578.46,1.28866921]
[1741030730674,1.384,579.12,578.48,0.27923448]
[1741030730873,1.384,579.12,578.75,1.28866921]
[1741030731066,1.384,579.12,578.76,0.27923448]
[1741030732375,1.384,579.12,578.75,1.28866921]
[1741030732570,1.384,579.12,578.76,0.27930099]
[1741030733771,1.384,579.12,578.5,0.27930099]
[1741030733977,1.384,579.12,578.49,1.28866921]
[1741030733978,1.384,579.12,578.51,0.27930099]
[1741030734170,1.384,579.12,578.5,0.27930099]
[1741030734371,1.384,579.12,578.51,0.27930099]
[1741030734571,1.384,579.12,578.5,0.27930099]
[1741030734770,1.384,579.12,578.51,0.27930099]
[1741030734975,1.384,579.12,578.52,0.27930099]
[1741030735174,1.384,579.12,578.5,0.27930099]
[1741030735378,1.384,579.12,578.51,0.27930099]
[1741030735579,1.384,579.12,578.5,0.27930099]
[1741030735876,1.384,579.12,578.51,0.27930099]
[1741030736075,1.384,579.12,578.13,0.27930099]
[1741030738374,1.384,579.12,578.14,0.27930099]
[1741030738585,1.384,579.12,578.03,1.28866921]
[1741030738776,1.384,579.12,578.04,0.27929095]
[1741030739171,1.384,579.12,578.06,0.34598484]
[1741030739377,1.384,579.12,578.07,0.27929095]
[1741030740279,1.384,579.12,578.08,0.27929095]
[1741030740579,1.384,579.12,578.09,0.27929095]
[1741030740775,1.384,579.12,578.1,1.56796016]
[1741030740979,1.384,579.12,578.12,0.34594893]
[1741030741175,1.384,579.12,578.13,0.27929095]
[1741030741378,1.384,579.12,578.14,0.27929095]
[1741030741578,1.384,579.12,578.15,0.27929095]
[1741030741881,1.384,579.12,578.16,0.27929095]
[1741030742081,1.384,579.12,578.17,0.27929095]
[1741030742381,1.384,579.12,578.18,0.27929095]
[1741030742583,1.384,579.12,578.19,0.27929095]
[1741030742776,1.384,579.12,578.2,0.27929095]
[1741030742975,1.384,579.12,578.21,0.27929095]
[1741030743176,1.384,579.12,578.22,0.27929095]
[1741030743381,1.384,579.12,578.23,0.27929095]
[1741030743676,1.384,579.12,578.24,0.27929095]
[1741030743886,1.384,579.12,578.25,0.27929095]
[1741030744383,1.384,579.12,578.26,0.27929095]
[1741030744677,1.384,579.12,578.27,0.27929095]
[1741030744882,1.384,579.12,578.12,0.34594893]
[1741030744883,1.384,579.12,578.28,0.27929095]
[1741030745077,1.384,579.12,578.59,1.28866921]
[1741030745381,1.384,579.12,578.6,0.27929095]
[1741030745582,1.384,579.12,578.61,0.27929095]
[1741030745880,1.384,579.12,578.62,0.27929095]
[1741030746082,1.384,579.12,578.63,0.27929095]
[1741030746277,0.44197908,579.12,578.64,0.27929095]
[1741030746484,0.44197908,579.12,578.65,0.27929095]
[1741030746683,0.44197908,579.12,578.66,0.27929095]
[1741030746883,0.44197908,579.12,578.67,0.27929095]
[1741030747082,0.37020246,579.12,578.67,0.27929095]
[1741030747278,0.37020246,579.12,578.68,0.27929095]
[1741030747485,0.37020246,579.12,578.69,0.27929095]
[1741030747677,1.135,579.11,578.7,0.27929095]
[1741030747983,1.135,579.11,578.97,1.28866921]
[1741030748184,1.135,579.11,578.98,0.27880234]
[1741030749185,1.135,579.11,578.99,0.27880234]
[1741030749485,1.135,579.11,579.0,0.27875983]
[1741030749788,1.135,579.11,579.01,0.27875983]
[1741030749981,1.135,579.11,578.98,0.27875983]
[1741030750180,1.135,579.11,578.99,0.27875983]
[1741030750382,1.135,579.11,579.0,0.27875983]
[1741030750686,1.135,579.11,579.01,0.27875983]
[1741030750882,1.135,579.11,578.56,2.63103298]
[1741030750883,1.135,579.11,579.02,0.27875983]
[1741030751082,1.135,579.11,579.03,0.27875983]
[1741030751283,1.135,579.11,579.04,0.27875983]
[1741030751484,1.135,579.11,579.05,0.27875983]
[1741030752080,1.135,579.11,578.65,2.63103298]
[1741030752081,1.135,579.11,579.06,0.27875983]
[1741030752385,1.135,579.11,579.07,0.27875983]
[1741030752585,1.135,579.11,579.08,0.27875983]
[1741030752787,1.135,579.11,579.09,0.27875983]
[1741030752987,1.135,579.11,579.1,0.27875983]
[1741030753489,1.135,579.11,578.73,0.27875983]
[1741030753782,1.135,579.11,578.74,0.27875983]
[1741030753986,1.135,579.11,578.75,0.34557235]
[1741030754191,1.135,579.11,578.76,0.2788569]
[1741030756087,1.135,579.11,578.77,0.2788569]
[1741030756288,1.135,579.11,578.78,0.2788569]
[1741030756482,1.135,579.11,578.79,0.2788569]
[1741030756681,1.135,579.11,578.8,0.2788569]
[1741030756882,1.135,579.11,578.81,0.2788569]
[1741030757085,1.135,579.11,578.82,0.2788569]
[1741030757286,1.135,579.11,578.83,0.27872995]
[1741030757490,1.135,579.11,578.84,0.27872995]
[1741030757789,1.135,579.11,578.85,0.27872995]
[1741030758083,1.135,579.11,578.86,0.27872995]
[1741030758286,1.135,579.11,578.87,0.27872995]
[1741030758491,1.135,579.11,578.88,0.27872995]
[1741030758684,1.135,579.11,578.75,0.34557235]
[1741030758883,1.135,579.11,578.76,0.27868745]
[1741030759088,1.135,579.11,578.77,0.27868745]
[1741030759289,1.135,579.11,578.78,0.27868745]
[1741030759488,1.135,579.11,578.79,0.27868745]
[1741030759789,1.135,579.11,578.75,0.34557235]
[1741030759790,1.135,579.11,578.8,0.27868745]
[1741030759989,1.135,579.11,578.81,0.27868745]
[1741030760289,1.135,579.11,578.82,0.27868745]
[1741030760489,1.135,579.11,578.83,0.27868745]
[1741030760690,1.135,579.11,578.84,0.27868745]
[1741030760985,1.135,579.11,578.85,0.27868745]
[1741030761490,1.135,579.11,578.86,0.27868745]
[1741030761685,1.135,579.11,578.87,0.27868745]
[1741030761985,1.135,579.11,578.88,0.27868745]
[1741030762185,1.135,579.11,578.89,0.27868745]
[1741030762490,1.135,579.11,578.9,0.27868745]
[1741030762790,1.135,579.11,578.91,0.27868745]
[1741030763089,1.135,579.11,578.92,0.27868745]
[1741030763293,1.135,579.11,578.75,0.34557235]
[1741030763484,1.135,579.11,578.93,0.27875941]
[1741030763685,1.135,579.11,578.94,0.27875941]
[1741030763885,1.135,579.11,578.95,0.27875941]
[1741030764088,1.135,579.11,578.96,0.27875941]
[1741030764286,1.135,579.11,578.97,0.27875941]
[1741030764486,1.135,579.11,578.98,0.27875941]
[1741030764692,1.135,579.11,578.99,0.27875941]
[1741030764892,1.135,579.11,579.0,0.27875458]
[1741030765091,1.135,579.11,579.01,0.27875458]
[1741030765391,1.135,579.11,579.02,0.2787628]
[1741030765690,1.80170074,580.68,579.03,0.2787628]
[1741030765884,1.228,579.75,579.04,0.2787628]
[1741030766089,1.228,579.75,579.05,0.2787628]
[1741030766290,1.228,579.75,578.76,1.28866921]
[1741030766291,1.228,579.75,579.06,0.2787628]
[1741030766485,1.228,579.75,579.07,0.2787666]
[1741030766790,1.228,579.75,578.77,1.28866921]
[1741030766791,1.228,579.75,579.08,0.2787666]
[1741030766991,1.228,579.75,579.09,0.2787666]
[1741030767294,1.228,579.75,579.1,0.2787666]
[1741030767688,1.228,579.75,579.11,0.2787666]
[1741030767892,1.228,579.75,578.77,1.28866921]
[1741030767893,1.228,579.75,579.12,0.2787666]
[1741030768090,1.228,579.75,579.13,0.2787645]
[1741030768389,1.228,579.75,579.14,0.2787645]
[1741030768594,1.228,579.75,579.15,0.2787645]
[1741030768793,1.228,579.75,579.16,0.2787645]
[1741030769096,1.228,579.75,578.95,1.28866921]
[1741030769097,0.992,579.74,579.17,0.2787645]
[1741030769297,0.992,579.74,578.96,0.2787645]
[1741030769498,0.992,579.74,578.95,1.28866921]
[1741030769698,0.992,579.74,578.96,0.27883562]
[1741030769900,0.992,579.74,578.97,0.27883562]
[1741030770197,0.992,579.74,578.98,0.27883562]
[1741030770397,0.992,579.74,578.75,0.34557235]
[1741030770398,0.992,579.74,578.99,0.27883562]
[1741030770597,0.992,579.74,579.0,0.27883562]
[1741030770892,0.992,579.74,579.01,0.27883562]
[1741030771091,0.992,579.74,578.81,1.28866921]
[1741030771297,0.992,579.74,578.82,0.27886976]
[1741030771596,0.992,579.74,578.83,0.27886976]
[1741030771794,0.992,579.74,578.81,1.28866921]
[1741030771795,0.992,579.74,578.84,0.62438838]
[1741030772093,0.992,579.74,578.85,0.27886976]
[1741030772297,0.992,579.74,578.86,0.27886976]
[1741030772497,0.992,579.74,578.87,0.27886976]
[1741030772699,0.992,579.74,578.89,0.34548878]
[1741030772896,0.992,579.74,578.9,0.27886976]
[1741030773094,0.992,579.74,578.91,0.27886976]
[1741030773295,0.992,579.74,578.93,0.3454649]
[1741030773497,0.992,579.74,578.94,0.27886976]
[1741030773697,0.992,579.74,578.93,0.3454649]
[1741030773698,0.992,579.74,578.95,0.27886976]
[1741030773902,0.992,579.74,578.94,0.27886976]
[1741030774201,0.992,579.74,578.95,0.27886976]
[1741030774402,0.992,579.74,579.0,1.28866921]
[1741030774606,0.992,579.74,579.01,0.27886976]
[1741030775104,0.992,579.74,579.02,0.27886976]
[1741030775406,0.992,579.74,579.03,0.27886976]
[1741030775597,0.992,579.74,579.04,0.27886976]
[1741030775798,0.992,579.74,579.05,0.27886976]
[1741030775996,0.992,579.74,579.06,0.27886976]
[1741030776197,0.992,579.74,579.07,0.27886976]
[1741030776401,0.992,579.74,579.08,0.27886976]
[1741030776598,0.992,579.74,579.09,0.27886976]
[1741030776802,0.992,579.74,579.1,0.27886976]
[1741030777003,0.992,579.74,579.11,0.27886976]
[1741030777306,0.992,579.74,579.32,1.28866921]
[1741030777805,0.992,579.74,579.33,0.27854747]
[1741030778199,0.992,579.74,579.34,0.62376789]
[1741030778403,0.992,579.74,579.35,0.27854747]
[1741030778711,0.992,579.74,579.34,0.34522042]
[1741030778904,0.992,579.74,579.35,0.2785042]
[1741030779703,0.992,579.74,579.49,1.28866921]
[1741030779907,0.992,579.74,579.5,0.2785042]
[1741030780402,0.992,579.74,579.49,1.28866921]
[1741030780403,0.992,579.74,579.51,0.27868081]
[1741030780603,0.992,579.74,579.5,0.27868081]
[1741030780902,0.992,579.74,579.51,0.27868081]
[1741030781107,0.992,579.74,579.5,0.27868081]
[1741030781305,0.992,579.74,579.51,0.27868081]
[1741030781501,0.992,579.74,579.5,0.27868081]
[1741030781707,0.992,579.74,579.7,1.28866921]
[1741030782007,0.992,579.74,579.71,0.27872023]
[1741030783308,0.992,579.74,579.7,1.28866921]
[1741030783508,0.992,579.74,579.71,0.27853203]
[1741030784309,0.992,579.74,579.72,0.27853203]
[1741030784509,0.992,579.74,579.73,0.27853203]
[1741030784711,0.992,579.74,579.63,0.27853203]
[1741030784908,0.992,579.74,579.64,0.27853203]
[1741030785107,0.992,579.74,579.62,1.54640306]
[1741030785108,0.992,579.74,579.65,0.27853203]
[1741030785411,0.992,579.74,579.66,0.27853203]
[1741030785602,0.992,579.74,579.67,0.27853203]
[1741030785808,0.992,579.74,579.63,0.27853203]
[1741030786508,0.992,579.74,579.64,0.27837888]
[1741030786707,0.992,579.74,579.69,1.54640306]
[1741030786906,1.228,579.75,579.7,0.27837888]
[1741030788213,1.228,579.75,579.71,0.27818722]
[1741030788510,1.228,579.75,579.74,1.28202357]
[1741030788710,1.228,579.75,579.74,1.56020665]
[1741030788911,1.80024055,580.83,579.74,1.56020665]
[1741030789113,1.80024055,580.83,579.75,0.27818308]
[1741030789309,6.28177782,581.27,579.75,0.27818308]
[1741030789513,0.34408602,581.25,579.74,1.28202357]
[1741030789807,0.31664221,581.24,579.75,0.62316454]
[1741030790007,2.44264221,581.24,579.76,0.27818826]
[1741030790211,0.34410378,581.22,579.76,0.27818826]
[1741030790411,0.31664221,581.21,579.76,0.27818826]
[1741030790607,0.34412154,581.19,579.76,0.27818826]
[1741030790912,0.31664221,581.18,579.76,0.27818826]
[1741030791313,0.3441393,581.16,579.76,0.27818826]
[1741030791513,0.31664221,581.15,579.76,0.27818826]
[1741030791712,0.34415115,581.14,579.76,0.27818826]
[1741030791908,0.31664221,581.13,579.76,0.27818826]
[1741030792413,0.34416891,581.11,579.76,0.27818826]
[1741030792614,0.34416891,581.11,579.75,0.34497628]
[1741030792811,0.31666777,581.1,579.76,0.27850267]
[1741030793008,0.34418668,581.08,579.76,0.27850267]
[1741030793211,0.31666777,581.07,579.76,1.56052624]
[1741030793411,0.31666777,581.07,579.77,0.27850267]
[1741030793812,0.34420445,581.05,579.77,0.27850267]
[1741030794014,0.31666777,581.04,579.77,0.27850267]
[1741030794313,0.34422222,581.02,579.77,0.27850267]
[1741030794615,0.31666777,581.01,579.77,0.27850267]
[1741030795413,0.34423407,581.0,579.77,0.27850267]
[1741030795716,0.34423407,581.0,579.76,1.28202357]
[1741030795914,0.31668807,580.99,579.77,0.2783234]
[1741030796108,0.34424592,580.98,579.83,1.28202357]
[1741030796306,0.31668807,580.97,579.84,0.2783234]
[1741030797315,1.79922447,580.96,579.84,0.2783234]
[1741030798322,1.79922447,580.96,579.85,0.2783234]
[1741030798522,1.79922447,580.96,579.86,0.2783234]
[1741030798721,1.79922447,580.96,579.76,0.2783234]
[1741030800019,0.34424592,580.98,579.79,1.28202357]
[1741030800221,0.34424592,580.98,579.8,0.2783234]
[1741030800621,0.34424592,580.98,579.81,0.2783234]
[1741030800817,0.34424592,580.98,579.82,0.2783234]
[1741030801025,0.34424592,580.98,579.83,0.2783234]
[1741030801225,0.34424592,580.98,579.84,0.2783234]
[1741030801424,0.34424592,580.98,579.85,0.2783234]
[1741030801623,0.34424592,580.98,579.79,1.28202357]
[1741030801624,0.34424592,580.98,579.86,0.27801444]
[1741030801818,0.34424592,580.98,579.87,0.27801444]
[1741030802021,1.67521102,581.9,579.88,0.27801444]
[1741030802220,1.79807792,581.55,579.89,0.27801444]
[1741030802417,1.79807792,581.55,579.75,0.34497628]
[1741030802418,1.79807792,581.55,580.04,1.28202357]
[1741030803025,1.67521102,581.98,580.05,0.27775012]
[1741030803222,1.79771411,581.6,580.06,0.27775012]
[1741030803425,1.79771411,581.6,580.07,0.27775012]
[1741030803621,1.67521102,581.98,580.04,1.28202357]
[1741030803622,1.67521102,581.98,580.05,0.27775012]
[1741030803822,0.68846576,581.96,580.06,0.27775012]
[1741030804126,1.79748198,581.7,580.07,0.27775012]
[1741030804321,0.68846576,581.96,580.08,0.27775012]
[1741030804523,0.68846576,581.96,580.09,0.27775012]
[1741030804524,1.79739687,581.83,580.09,0.27775012]
[1741030804720,1.79739687,581.83,580.1,0.27775012]
[1741030804927,1.79739687,581.83,580.11,0.27775012]
[1741030805232,1.79739687,581.83,579.75,2.97600926]
[1741030805233,1.79739687,581.83,580.23,1.28202357]
[1741030805422,1.79739687,581.83,580.24,0.27775012]
[1741030805623,1.79739687,581.83,580.25,0.27795042]
[1741030805824,1.72094794,581.82,580.24,0.27795042]
[1741030806026,1.72094794,581.82,580.25,0.27795042]
[1741030806229,1.79755161,581.55,580.24,0.27795042]
[1741030806428,1.79755161,581.55,580.25,0.27795042]
[1741030806630,1.79755161,581.55,580.26,0.27795042]
[1741030806827,1.79755161,581.55,580.24,0.27795042]
[1741030807332,1.79755161,581.55,580.25,0.27795042]
[1741030807529,1.67521102,581.93,580.26,0.27795042]
[1741030807730,1.79734272,581.74,580.26,0.27795042]
[1741030807931,1.67521102,581.93,580.27,0.27795042]
[1741030808129,1.67521102,581.93,580.28,0.27795042]
[1741030808333,1.79715708,581.84,580.29,0.27795042]
[1741030808528,1.79715708,581.84,580.3,0.27795042]
[1741030808736,1.79715708,581.84,580.31,0.27795042]
[1741030808927,1.79715708,581.84,580.32,0.27795042]
[1741030809129,1.79715708,581.84,580.33,0.27795042]
[1741030809333,1.79715708,581.84,580.34,0.27795042]
[1741030809634,1.79715708,581.84,580.35,0.27795042]
[1741030809831,1.79715708,581.84,580.02,0.27795042]
[1741030810033,1.79715708,581.84,580.03,0.27795042]
[1741030810231,1.72090312,581.83,580.04,0.27795042]
[1741030810436,4.55862281,581.82,580.04,0.27795042]
[1741030810629,8.51732266,581.81,580.09,1.28202357]
[1741030810935,8.51732266,581.8,580.1,0.2778543]
[1741030811135,8.51732266,581.79,580.1,0.2778543]
[1741030811331,8.51732266,581.78,580.1,0.2778543]
[1741030811534,1.68570952,581.68,580.1,0.2778543]
[1741030811730,1.68570952,581.66,580.1,0.2778543]
[1741030811937,8.51732266,581.66,580.1,0.2778543]
[1741030812135,9.07086612,581.65,580.1,0.2778543]
[1741030812329,1.79782247,581.49,580.1,0.2778543]
[1741030813035,1.7219377,581.48,580.1,0.2778543]
[1741030813532,1.721955,581.47,580.1,0.2778543]
[1741030813838,1.72203612,581.46,580.11,0.2778543]
[1741030814136,1.34775561,581.47,580.12,0.2778543]
[1741030814333,1.72193333,581.46,579.76,0.2778543]
[1741030814537,1.72193333,581.46,579.77,0.2778543]
[1741030814732,1.72193333,581.46,579.78,0.2778543]
[1741030814938,2.43958195,581.45,579.79,0.2778543]
[1741030815138,2.43958195,581.45,579.31,1.28202357]
[1741030815139,5.57039997,581.44,579.8,0.2778543]
[1741030815335,1.79855805,581.23,579.81,0.2778543]
[1741030815542,1.34775561,581.44,579.82,0.2778543]
[1741030815840,0.34409786,581.23,579.83,0.2778543]
[1741030816033,0.34409786,581.23,579.84,0.2778543]
[1741030816233,0.34409786,581.23,579.85,0.2778543]
[1741030816433,0.34409786,581.23,579.86,0.2778543]
[1741030816632,0.34409786,581.23,579.87,0.2778543]
[1741030816834,0.34409786,581.23,579.88,0.277656]
[1741030817037,0.34409786,581.23,579.89,0.277656]
[1741030817334,0.34409786,581.23,579.9,0.277656]
[1741030817539,0.34409786,581.23,579.91,0.277656]
[1741030817840,1.79772959,581.68,579.92,0.277656]
[1741030818034,0.68842811,582.0,579.93,0.277656]
[1741030818239,1.79786891,581.62,579.93,0.277656]
[1741030818443,3.50282286,582.01,579.94,0.277656]
[1741030818640,3.50282286,582.01,579.76,1.28202357]
[1741030818641,5.56483351,582.0,579.95,0.277656]
[1741030818836,1.79768316,581.7,579.96,0.277656]
[1741030819037,1.68632288,582.14,579.97,0.277656]
[1741030819237,1.7975284,581.83,579.98,0.277656]
[1741030819436,1.7975284,581.83,579.99,0.277656]
[1741030819741,1.67521102,582.16,580.0,0.277656]
[1741030819936,1.79740461,581.92,580.01,0.277656]
[1741030820138,0.986,581.24,580.02,0.277656]
[1741030820340,0.986,581.24,580.03,0.277656]
[1741030820537,0.986,581.24,580.04,0.277656]
[1741030820742,0.986,581.24,580.05,0.277656]
[1741030820943,0.986,581.24,579.86,1.28202357]
[1741030820944,0.986,581.24,580.06,0.277656]
[1741030821143,0.986,581.24,580.07,0.277656]
[1741030821440,0.986,581.24,579.86,1.28202357]
[1741030821743,0.986,581.24,579.87,0.27742119]
[1741030821945,0.986,581.24,579.88,0.27742119]
[1741030822140,0.986,581.24,579.89,0.27742119]
[1741030822444,0.986,581.24,579.9,0.27742119]
[1741030822744,0.986,581.24,579.91,0.27742119]
[1741030822946,0.986,581.24,579.86,1.28202357]
[1741030823147,0.986,581.24,580.09,1.28202357]
[1741030823342,1.18,581.23,580.1,0.2778283]
[1741030823541,1.18,581.23,580.11,0.2778283]
[1741030823742,1.18,581.23,580.12,0.2778283]
[1741030823948,1.18,581.23,580.13,0.2778283]
[1741030824148,1.18,581.23,580.14,0.2778283]
[1741030824448,1.18,581.23,580.15,0.2778283]
[1741030824648,1.18,581.23,580.16,0.2778283]
[1741030824942,1.18,581.23,579.94,1.54640306]
[1741030824943,1.18,581.23,580.17,0.2778283]
[1741030825144,1.18,581.23,580.18,0.2778283]
[1741030825448,1.18,581.23,579.96,1.28202357]
[1741030825449,1.18,581.23,580.19,0.2778283]
[1741030825647,1.18,581.23,579.97,0.2778283]
[1741030825845,1.18,581.23,579.98,0.2778283]
[1741030826044,1.18,581.23,579.96,1.28202357]
[1741030826240,1.18,581.23,579.97,0.27817211]
[1741030827448,1.18,581.23,579.98,0.27817211]
[1741030827648,1.18,581.23,579.99,0.27807114]
[1741030827848,1.18,581.23,580.0,0.27807114]
[1741030828048,1.18,581.23,580.01,0.27807114]
[1741030828248,1.18,581.23,580.02,0.27807114]
[1741030828449,1.18,581.23,580.03,0.27807114]
[1741030828647,1.18,581.23,580.04,0.27807114]
[1741030828852,1.18,581.23,579.65,1.28202357]
[1741030829047,1.18,581.23,579.66,0.27807114]
[1741030829251,1.18,581.23,579.67,0.2782863]
[1741030829452,1.18,581.23,579.68,0.2782863]
[1741030829652,1.18,581.23,579.69,0.2782863]
[1741030829849,1.18,581.23,579.7,0.2782863]
[1741030830050,1.18,581.23,579.71,0.2782863]
[1741030830250,1.18,581.23,579.72,0.2782863]
[1741030830450,1.18,581.23,579.73,0.2782863]
[1741030830646,1.18,581.23,579.74,0.2782863]
[1741030830846,1.18,581.23,579.75,0.2782863]
[1741030831046,1.18,581.23,579.76,0.2782863]
[1741030831254,1.18,581.23,579.77,0.2782863]
[1741030831453,1.18,581.23,579.78,0.2782863]
[1741030831650,1.18,581.23,579.79,0.2782863]
[1741030831950,1.18,581.23,579.65,1.28202357]
[1741030831951,1.18,581.23,579.8,0.2782863]
[1741030832153,1.18,581.23,579.75,1.28202357]
[1741030832348,1.18,581.23,579.76,0.27805377]
[1741030832552,1.18,581.23,579.77,0.27805377]
[1741030832751,1.18,581.23,579.78,0.27805377]
[1741030832956,1.18,581.23,579.79,0.27805377]
[1741030833449,1.18,581.23,579.8,0.27805377]
[1741030833656,1.18,581.23,579.81,0.27805377]